bitfinex/quotes_ETHUSD_20250604
["timestamp","ask_amount","ask_price","bid_price","bid_amount"]
[1749022232261,3.24766528,2624.9,2624.8,1.596]
[1749022232419,3.24766528,2624.9,2624.8,7.781]
[1749022234457,3.24766528,2624.9,2624.8,1.596]
[1749022234776,4.88443181,2624.9,2624.8,1.596]
[1749022237331,4.55966528,2624.9,2624.8,1.596]
[1749022237528,3.24766528,2624.9,2624.8,1.596]
[1749022240771,3.24766528,2624.9,2624.8,11.596]
[1749022240992,3.24766528,2624.9,2624.8,12.19172159]
[1749022241138,9.0378,2625.8,2624.8,12.19172159]
[1749022241139,3.24766528,2625.7,2624.9,8.0]
[1749022241333,3.24766528,2625.7,2625.6,2.80374246]
[1749022241538,3.24766528,2625.7,2625.6,10.58374246]
[1749022243432,3.24766528,2625.7,2625.6,7.78]
[1749022246481,0.02,2625.9,2625.6,10.58374246]
[1749022246637,0.02,2625.9,2625.8,2.80374246]
[1749022248236,0.02,2625.9,2625.8,3.86211671]
[1749022248442,0.02,2625.9,2625.8,11.05837425]
[1749022252915,0.02,2625.9,2625.8,17.23937425]
[1749022253997,0.02,2625.9,2625.8,25.23937425]
[1749022254198,0.02,2625.9,2625.8,26.46991517]
[1749022254753,0.02,2625.9,2625.8,18.40355017]
[1749022254953,0.02,2625.9,2625.8,17.76521228]
[1749022255266,0.02,2625.9,2625.8,16.53467136]
[1749022256964,0.02,2625.9,2625.8,9.57999073]
[1749022257209,0.02,2625.9,2625.8,16.181]
[1749022258927,0.02,2625.9,2625.8,24.181]
[1749022260012,0.02,2625.9,2625.8,28.57774246]
[1749022264737,0.02,2625.9,2625.8,36.79174246]
[1749022268677,0.02,2625.9,2625.8,27.77232546]
[1749022268838,0.02,2625.9,2625.8,32.74061146]
[1749022269253,0.02,2625.9,2625.8,33.37894935]
[1749022269457,0.02,2625.9,2625.8,32.74061146]
[1749022271772,0.02,2625.9,2625.8,26.56161146]
[1749022272096,0.02,2625.9,2625.8,31.84709046]
[1749022273037,0.02,2625.9,2625.8,23.84709046]
[1749022273237,0.02,2625.9,2625.8,20.36828]
[1749022273449,0.02,2625.9,2625.8,23.17202246]
[1749022274540,0.02,2625.9,2625.8,15.987]
[1749022274746,1.3463,2625.9,2625.8,9.808]
[1749022277158,1.3463,2625.9,2625.8,1.593]
[1749022278596,1.76130425,2625.9,2625.8,1.593]
[1749022278810,1.3463,2625.9,2625.8,1.593]
[1749022278978,3.7463,2625.9,2625.8,1.593]
[1749022285058,1.3162,2625.8,2625.4,10.0]
[1749022285297,1.8662,2625.4,2625.3,1.593]
[1749022285602,2.33319425,2625.4,2625.3,1.593]
[1749022285770,1.8662,2625.4,2625.3,1.593]
[1749022287468,1.3162,2625.4,2625.3,1.593]
[1749022288924,1.8662,2625.4,2625.3,1.593]
[1749022289422,5.11386528,2625.4,2625.3,1.593]
[1749022291392,7.91760774,2625.4,2625.3,1.593]
[1749022291596,8.70936851,2625.4,2625.3,1.593]
[1749022294115,5.90562605,2625.4,2625.3,1.593]
[1749022302436,0.55,2625.3,2624.9,8.215]
[1749022302634,3.24766528,2625.2,2625.0,1.593]
[1749022302835,3.24766528,2625.2,2625.0,7.773]
[1749022306914,3.24766528,2625.2,2625.0,11.17246405]
[1749022307115,3.24766528,2625.2,2625.1,10.0]
[1749022307442,4.61816528,2625.8,2625.1,10.0]
[1749022309012,4.61816528,2625.8,2625.3,10.0]
[1749022309344,4.61816528,2625.8,2625.1,9.723809]
[1749022311657,4.61816528,2625.8,2625.1,3.389906]
[1749022311827,4.61816528,2625.8,2625.1,10.0]
[1749022312034,4.61816528,2625.8,2625.2,10.0]
[1749022312558,2.4,2625.6,2625.2,10.0]
[1749022312721,2.4,2625.6,2625.1,10.0]
[1749022312916,0.55,2625.5,2624.9,8.215]
[1749022313117,0.55,2625.3,2624.9,8.215]
[1749022313358,0.55,2625.3,2625.0,7.773]
[1749022314421,0.55,2625.3,2625.1,10.0]
[1749022314722,0.55,2625.3,2625.0,7.773]
[1749022316432,0.55,2625.3,2625.1,1.593]
[1749022316633,0.55,2625.3,2625.2,1.593]
[1749022317242,3.79766528,2625.3,2625.2,1.593]
[1749022317423,4.30348181,2625.3,2625.2,1.593]
[1749022317622,4.30348181,2625.3,2625.2,7.773]
[1749022318767,4.30348181,2625.3,2625.2,1.593]
[1749022321122,4.30348181,2625.3,2624.6,8.218]
[1749022321361,0.55,2625.2,2624.7,7.773]
[1749022321666,0.98034818,2625.2,2624.7,7.773]
[1749022322867,0.98034818,2625.2,2624.8,6.18]
[1749022323228,3.24766528,2625.1,2624.8,6.18]
[1749022328376,3.24766528,2625.1,2624.8,16.18]
[1749022328988,3.24766528,2625.1,2624.9,2.80374246]
[1749022329285,3.24766528,2625.5,2625.0,10.59572159]
[1749022329487,0.02,2625.9,2625.5,10.0]
[1749022329672,0.02,2625.9,2625.7,10.0]
[1749022329880,0.02,2625.9,2625.6,7.773]
[1749022330188,2.4,2625.7,2625.6,7.773]
[1749022330382,2.4,2625.7,2625.6,13.136954]
[1749022330687,2.4,2625.7,2625.6,7.773]
[1749022331053,4.5395,2625.7,2625.6,7.773]
[1749022332784,2.4,2625.7,2625.6,7.773]
[1749022333387,0.02,2625.9,2625.6,7.773]
[1749022334690,1.3012,2625.8,2625.7,7.772]
[1749022335096,4.54886528,2625.8,2625.7,7.772]
[1749022335274,5.06075181,2625.8,2625.7,7.772]
[1749022336994,5.06075181,2625.8,2625.0,2.80374246]
[1749022337308,5.06075181,2625.8,2625.2,10.0]
[1749022337714,5.06075181,2625.8,2625.3,10.0]
[1749022337867,5.06075181,2625.8,2625.3,7.771]
[1749022339909,5.06075181,2625.8,2625.4,6.179]
[1749022340216,0.56307518,2625.7,2625.3,1.592]
[1749022340415,0.56307518,2625.7,2625.4,6.179]
[1749022340781,0.56307518,2625.7,2625.1,10.0]
[1749022341110,3.24766528,2625.6,2625.2,7.771]
[1749022341323,3.24766528,2625.6,2625.2,1.592]
[1749022341324,0.55,2625.4,2625.2,1.592]
[1749022341611,4.30881181,2625.3,2625.2,1.592]
[1749022341830,1.8509,2625.0,2624.6,14.398]
[1749022342118,3.24766528,2624.9,2624.7,1.592]
[1749022344097,3.24766528,2624.9,2624.7,7.771]
[1749022346432,3.24766528,2624.9,2624.8,10.0]
[1749022351176,3.24766528,2624.9,2624.7,7.771]
[1749022352742,3.24766528,2624.9,2624.7,1.592]
[1749022353036,3.24766528,2624.9,2624.8,6.179]
[1749022353742,3.24766528,2624.9,2624.8,16.179]
[1749022356983,3.24766528,2624.9,2624.8,7.771]
[1749022361247,3.24766528,2624.9,2624.8,1.592]
[1749022362479,3.24766528,2624.9,2624.8,7.771]
[1749022365591,3.24766528,2624.9,2624.8,17.771]
[1749022365796,3.24766528,2624.9,2624.8,18.36672159]
[1749022366593,3.24766528,2625.8,2624.9,10.0]
[1749022366791,3.24766528,2625.8,2625.7,12.80374246]
[1749022366997,3.24766528,2625.8,2625.7,20.57474246]
[1749022367303,0.02,2625.9,2625.8,10.0]
[1749022368336,0.02,2625.9,2625.8,6.697735]
[1749022368501,0.02,2625.9,2625.7,10.57474246]
[1749022371850,0.02,2625.9,2625.7,7.771]
[1749022379583,0.02,2625.9,2625.7,1.592]
[1749022379768,1.3701,2625.8,2625.7,1.592]
[1749022380079,3.7701,2625.8,2625.7,1.592]
[1749022380285,4.14911,2625.8,2625.7,1.592]
[1749022383886,1.74911,2625.8,2625.7,1.592]
[1749022384081,1.3701,2625.8,2625.7,1.592]
[1749022384498,5.16776528,2625.8,2625.7,1.592]
[1749022384660,5.05306528,2625.8,2625.7,1.592]
[1749022386300,5.64766528,2625.8,2625.7,1.592]
[1749022386694,5.64766528,2625.8,2625.7,7.769]
[1749022386856,6.21443181,2625.8,2625.7,7.769]
[1749022387672,7.55673181,2625.8,2625.7,7.769]
[1749022391203,6.21443181,2625.8,2625.7,7.769]
[1749022392590,6.21443181,2625.8,2625.7,1.592]
[1749022392591,8.08133181,2625.8,2625.7,1.592]
[1749022394099,6.21443181,2625.8,2625.7,1.592]
[1749022394414,5.64766528,2625.8,2625.7,1.592]
[1749022398023,5.64766528,2625.8,2625.7,7.769]
[1749022402285,3.24766528,2625.8,2625.7,7.769]
[1749022407692,5.64766528,2625.8,2625.7,7.769]
[1749022410584,5.64766528,2625.8,2625.7,17.4778]
[1749022410795,5.64766528,2625.8,2625.7,20.28154246]
[1749022411085,3.24766528,2625.8,2625.7,20.28154246]
[1749022413980,3.24766528,2625.8,2625.7,7.09178]
[1749022414183,3.24766528,2625.8,2625.7,1.592]
[1749022414561,3.24766528,2625.8,2625.7,7.769]
[1749022414987,3.24766528,2625.8,2625.7,7.768]
[1749022418390,3.24766528,2625.8,2625.7,1.592]
[1749022418591,3.57443181,2625.8,2625.7,1.592]
[1749022418755,4.80093181,2625.8,2625.7,7.768]
[1749022419093,4.47416528,2625.8,2625.7,7.768]
[1749022420191,3.24766528,2625.8,2625.7,7.768]
[1749022422659,5.64766528,2625.8,2625.7,7.768]
[1749022423572,5.64766528,2625.8,2625.7,1.591]
[1749022423996,3.24766528,2625.8,2625.7,1.591]
[1749022424768,3.24766528,2625.8,2625.7,17.767]
[1749022424969,3.24766528,2625.8,2625.7,7.767]
[1749022433411,3.24766528,2625.8,2625.7,1.591]
[1749022433579,3.24766528,2625.8,2625.7,7.767]
[1749022437924,3.24766528,2625.8,2625.7,17.767]
[1749022438082,3.24766528,2625.8,2625.7,10.23213]
[1749022439725,3.24766528,2625.8,2625.7,1.591]
[1749022439924,3.57443181,2625.8,2625.7,1.591]
[1749022440996,3.57443181,2625.8,2625.6,8.216]
[1749022440997,1.3524,2625.7,2625.6,8.216]
[1749022441184,3.35374246,2625.7,2625.6,9.807]
[1749022441382,4.64354246,2625.7,2625.6,9.807]
[1749022441584,5.46733989,2625.7,2625.6,9.807]
[1749022441828,2.11359743,2625.7,2625.6,9.807]
[1749022442611,4.51359743,2625.7,2625.6,9.807]
[1749022444421,7.76126271,2625.7,2625.6,9.807]
[1749022445603,6.47146271,2625.7,2625.6,9.807]
[1749022446399,5.64766528,2625.7,2625.6,9.807]
[1749022447187,5.64766528,2625.7,2625.6,12.61074246]
[1749022447414,2.4,2625.7,2625.6,22.61074246]
[1749022447805,2.4,2625.7,2625.6,28.78674246]
[1749022449033,2.4,2625.7,2625.6,28.39177946]
[1749022449232,2.4,2625.7,2625.6,27.97517546]
[1749022449811,0.02,2625.9,2625.6,18.78674246]
[1749022452511,1.301,2625.9,2625.6,8.216]
[1749022452713,1.301,2625.9,2625.7,7.767]
[1749022453227,1.301,2625.9,2625.6,8.216]
[1749022453449,1.301,2625.9,2625.8,7.767]
[1749022453746,0.02,2625.9,2625.8,7.767]
[1749022455314,0.02,2625.9,2625.8,7.766]
[1749022457427,0.02,2625.9,2625.8,1.591]
[1749022457738,1.3756,2625.9,2625.8,7.766]
[1749022457947,1.83792653,2625.9,2625.8,7.766]
[1749022459016,0.02,2625.9,2625.8,20.56974246]
[1749022460856,0.02,2625.9,2625.8,15.13666346]
[1749022464039,0.02,2625.9,2625.8,10.56874246]
[1749022464240,0.02,2625.9,2625.8,19.55766546]
[1749022464998,0.02,2625.9,2625.8,10.56874246]
[1749022465195,3.26766528,2625.9,2625.8,15.70494846]
[1749022468408,3.26766528,2625.9,2625.8,14.76183746]
[1749022468705,3.26766528,2625.9,2625.8,14.34183746]
[1749022470189,3.26766528,2625.9,2625.8,11.538095]
[1749022470388,3.26766528,2625.9,2625.8,4.99223]
[1749022470588,3.59443181,2625.9,2625.8,7.764]
[1749022471609,3.26766528,2625.9,2625.8,7.764]
[1749022473175,3.26766528,2625.9,2625.6,11.01974246]
[1749022473373,3.26766528,2625.9,2625.8,10.0]
[1749022473575,3.26766528,2625.9,2625.8,12.80374246]
[1749022473778,3.26766528,2625.9,2625.8,10.0]
[1749022474010,0.02,2625.9,2625.8,10.0]
[1749022477166,0.02,2625.9,2625.8,4.086124]
[1749022477500,0.02,2625.9,2625.8,1.59]
[1749022477703,0.02,2625.9,2625.8,15.95626]
[1749022484087,0.02,2625.9,2625.8,9.78226]
[1749022484290,0.02,2625.9,2625.8,15.95626]
[1749022484669,0.02,2625.9,2625.8,8.21934951]
[1749022485806,0.02,2625.9,2625.8,2.80374246]
[1749022486011,0.02,2625.9,2625.8,12.60774246]
[1749022486316,0.02,2625.9,2625.8,22.60774246]
[1749022487083,0.02,2625.9,2625.8,28.78174246]
[1749022490388,0.02,2625.9,2625.8,22.60774246]
[1749022490589,0.02,2625.9,2625.8,28.78174246]
[1749022490785,0.02,2625.9,2625.8,9.804]
[1749022491097,0.34676653,2625.9,2625.8,19.03158]
[1749022491297,0.02,2625.9,2625.8,19.03158]
[1749022494724,3.26766528,2625.9,2625.8,12.85758]
[1749022494892,3.26766528,2625.9,2625.8,19.03158]
[1749022496125,3.26766528,2625.9,2625.8,12.85758]
[1749022496302,3.26766528,2625.9,2625.8,9.804]
[1749022496506,3.59443181,2625.9,2625.8,15.978]
[1749022498713,3.59443181,2625.9,2625.8,9.804]
[1749022499090,3.59443181,2625.9,2625.8,1.59]
[1749022500232,3.59443181,2625.9,2625.8,7.764]
[1749022500429,3.59443181,2625.9,2625.8,1.59]
[1749022500635,5.39633181,2625.9,2625.8,1.59]
[1749022501727,4.84633181,2625.9,2625.8,1.59]
[1749022506956,4.84633181,2625.9,2625.8,7.764]
[1749022512455,4.84633181,2625.9,2625.6,3.920712]
[1749022512662,5.06956528,2625.9,2625.8,1.59]
[1749022515443,5.06956528,2625.9,2625.8,7.764]
[1749022516550,5.06956528,2625.9,2625.8,1.59]
[1749022516885,5.06956528,2625.9,2625.8,7.764]
[1749022517381,5.06956528,2625.9,2625.8,1.59]
[1749022517592,5.85689605,2625.9,2625.8,1.59]
[1749022519889,1.8223,2625.8,2625.6,1.59]
[1749022520048,0.55,2625.7,2625.6,1.59]
[1749022520249,1.7824,2625.2,2625.1,6.174]
[1749022520447,5.03006528,2625.2,2625.1,1.59]
[1749022520677,5.53307181,2625.2,2625.1,7.764]
[1749022522061,5.53307181,2625.2,2624.9,8.216]
[1749022522062,1.8251,2625.1,2624.9,8.216]
[1749022522298,7.87650774,2625.1,2624.9,8.216]
[1749022522477,1.8251,2625.0,2624.9,8.216]
[1749022522661,5.07276528,2625.0,2624.9,8.216]
[1749022522849,5.91071671,2625.0,2624.9,8.216]
[1749022533191,1.8919,2624.6,2624.0,6.45963]
[1749022533400,1.8919,2624.6,2624.1,1.59]
[1749022533401,0.55,2624.4,2624.1,1.59]
[1749022533722,0.55,2624.4,2624.2,6.176]
[1749022534682,0.55,2624.4,2624.1,1.59]
[1749022534879,0.55,2624.2,2624.1,1.59]
[1749022535131,0.55,2624.2,2623.9,8.219]
[1749022535132,1.3419,2624.1,2623.9,8.219]
[1749022535416,0.55,2624.0,2623.9,8.219]
[1749022535629,0.55,2623.8,2623.1,0.02]
[1749022535785,0.55,2623.8,2623.6,1.59]
[1749022535982,0.46956425,2623.7,2623.6,1.59]
[1749022536809,2.31906425,2623.7,2623.6,1.59]
[1749022538628,0.55,2623.7,2623.6,1.59]
[1749022538778,6.56536427,2624.4,2623.6,1.59]
[1749022538779,1.2945,2624.2,2623.6,1.59]
[1749022538979,4.50926528,2624.4,2623.7,10.0]
[1749022539246,3.24766528,2624.4,2623.7,12.80374246]
[1749022539426,1.2388,2624.8,2623.9,2.80374246]
[1749022539626,0.40425425,2624.7,2624.0,6.18]
[1749022540031,0.55,2624.6,2624.0,6.18]
[1749022540416,0.40425425,2624.7,2624.0,6.18]
[1749022540607,1.2388,2624.8,2624.0,6.18]
[1749022541131,0.55,2624.7,2624.1,10.0]
[1749022541333,0.55,2624.7,2624.2,1.591]
[1749022541907,0.55,2624.7,2624.2,11.591]
[1749022542303,0.55,2624.7,2624.2,1.591]
[1749022542630,0.55,2624.7,2624.2,11.591]
[1749022542813,2.4,2624.5,2624.2,1.591]
[1749022543406,2.4,2624.5,2624.2,11.591]
[1749022544006,2.4,2624.5,2624.2,1.591]
[1749022544310,2.4,2624.5,2624.2,11.591]
[1749022544527,2.4,2624.5,2624.2,1.591]
[1749022545047,3.24766528,2624.4,2624.2,1.591]
[1749022545447,3.24766528,2624.4,2624.2,11.591]
[1749022546065,3.24766528,2624.4,2624.2,1.591]
[1749022546432,3.24766528,2624.4,2624.2,11.591]
[1749022547025,3.24766528,2624.4,2624.2,1.591]
[1749022547881,3.24766528,2624.4,2624.2,11.591]
[1749022548084,3.24766528,2624.4,2624.2,1.591]
[1749022548435,3.24766528,2624.4,2624.2,11.591]
[1749022549576,3.24766528,2624.4,2624.2,1.591]
[1749022549965,3.24766528,2624.4,2624.2,11.591]
[1749022550534,3.24766528,2624.4,2624.2,1.591]
[1749022550883,3.24766528,2624.4,2624.2,11.591]
[1749022551068,3.24766528,2624.4,2624.2,1.591]
[1749022551385,3.24766528,2624.4,2624.3,6.177]
[1749022557358,3.81243181,2624.4,2624.2,1.591]
[1749022557563,4.36243181,2624.4,2624.3,6.177]
[1749022559276,3.24766528,2624.4,2624.3,6.177]
[1749022560576,3.24766528,2624.4,2624.3,14.752938]
[1749022561070,3.24766528,2624.4,2624.3,14.523428]
[1749022562610,3.24766528,2624.4,2624.3,13.829788]
[1749022562903,3.24766528,2624.4,2624.3,11.687234]
[1749022563066,3.24766528,2624.4,2624.3,6.177]
[1749022563466,3.24766528,2624.4,2624.3,1.59]
[1749022563703,3.70060181,2624.4,2624.3,7.767]
[1749022563910,3.70060181,2624.4,2624.3,1.59]
[1749022564171,3.70060181,2624.4,2624.3,7.767]
[1749022564383,4.25060181,2624.4,2624.3,1.59]
[1749022564583,5.57200181,2624.4,2624.3,1.59]
[1749022565330,0.55,2624.3,2624.0,8.221]
[1749022565483,4.25060181,2624.4,2624.0,8.221]
[1749022565484,3.83380264,2624.2,2624.1,1.59]
[1749022565689,5.08670264,2624.2,2624.1,1.59]
[1749022566617,5.11766528,2624.0,2623.9,1.591]
[1749022566930,7.92140774,2624.0,2623.9,1.591]
[1749022568525,7.92140774,2624.0,2623.1,10.02]
[1749022568526,0.55,2623.7,2623.5,1.591]
[1749022568730,3.79766528,2623.6,2623.5,1.591]
[1749022573524,3.79766528,2623.6,2623.5,7.769]
[1749022577914,3.79766528,2623.6,2623.5,1.591]
[1749022578162,5.10936528,2623.6,2623.5,1.591]
[1749022578461,5.90067605,2623.6,2623.5,1.591]
[1749022580012,3.79766528,2623.5,2623.1,0.02]
[1749022580269,1.8354,2623.2,2623.1,1.611]
[1749022583549,9.6054,2623.2,2623.1,1.611]
[1749022584817,7.77,2623.2,2623.1,1.611]
[1749022585316,7.77,2623.2,2623.1,1.591]
[1749022586452,7.77,2623.2,2623.1,7.771]
[1749022588051,7.77,2623.2,2623.1,1.591]
[1749022589405,3.24766528,2623.2,2623.1,7.771]
[1749022589929,3.24766528,2623.2,2623.1,6.18]
[1749022595276,3.24766528,2623.2,2623.1,7.771]
[1749022596336,3.24766528,2623.2,2623.1,1.591]
[1749022596540,3.24766528,2623.2,2623.1,7.771]
[1749022600692,3.24766528,2623.2,2623.1,17.771]
[1749022602144,3.24766528,2623.2,2623.1,6.223471]
[1749022602376,3.24766528,2623.2,2623.1,7.771]
[1749022602881,5.64766528,2623.2,2623.1,1.591]
[1749022603087,5.64766528,2623.2,2623.1,7.771]
[1749022604144,5.64766528,2623.2,2623.1,1.591]
[1749022604506,6.89080181,2623.2,2623.1,1.591]
[1749022604846,4.49080181,2623.2,2623.1,7.77]
[1749022607152,3.79766528,2623.2,2623.1,7.77]
[1749022607590,3.24766528,2623.2,2623.1,7.77]
[1749022607770,5.64766528,2623.2,2623.1,7.77]
[1749022612803,6.19766528,2623.2,2623.1,1.591]
[1749022612970,7.53306528,2623.2,2623.1,7.771]
[1749022613171,8.28637181,2623.2,2623.1,7.771]
[1749022614212,6.19766528,2623.2,2623.1,7.771]
[1749022615209,5.64766528,2623.2,2623.1,7.771]
[1749022615504,5.64766528,2623.2,2623.1,20.57474246]
[1749022615863,2.4,2623.2,2623.1,20.57474246]
[1749022616102,1.6875,2623.2,2623.1,29.13639512]
[1749022616313,3.24766528,2624.1,2623.3,8.0]
[1749022616508,3.24766528,2624.1,2623.8,10.0]
[1749022616669,3.24766528,2624.1,2623.9,7.771]
[1749022620505,3.24766528,2624.1,2624.0,1.591]
[1749022621194,3.24766528,2624.1,2624.0,11.591]
[1749022621395,3.24766528,2624.7,2624.1,10.0]
[1749022621599,3.24766528,2624.7,2624.2,6.179]
[1749022621768,0.55,2624.6,2624.2,6.179]
[1749022621970,0.55,2624.6,2624.2,16.179]
[1749022623095,0.55,2624.6,2624.2,6.179]
[1749022623293,0.37976653,2624.5,2624.2,6.179]
[1749022623493,0.37976653,2624.5,2624.2,16.179]
[1749022624584,0.37976653,2624.5,2624.2,6.179]
[1749022624785,3.24766528,2624.4,2624.2,6.179]
[1749022624985,3.24766528,2624.4,2624.2,16.179]
[1749022626121,3.24766528,2624.4,2624.2,6.179]
[1749022626501,3.24766528,2624.4,2624.2,16.179]
[1749022627722,3.24766528,2624.4,2624.2,6.179]
[1749022628437,3.24766528,2624.4,2624.3,12.80374246]
[1749022629110,0.02,2624.9,2624.4,10.0]
[1749022629313,0.02,2624.9,2624.8,12.80374246]
[1749022629509,0.02,2624.9,2624.8,20.57074246]
[1749022635448,0.02,2624.9,2624.8,17.05297946]
[1749022638470,0.02,2624.9,2624.8,17.05097946]
[1749022641090,0.02,2624.9,2624.8,25.26897946]
[1749022650997,0.02,2624.9,2624.8,33.26897946]
[1749022654598,0.02,2624.9,2624.8,27.02804387]
[1749022656601,0.02,2625.9,2624.9,18.0]
[1749022656765,0.02,2625.9,2625.8,10.0]
[1749022656976,0.02,2625.9,2625.8,17.762]
[1749022659213,0.02,2625.9,2625.2,12.80374246]
[1749022659503,1.2639,2625.9,2625.5,8.0]
[1749022659717,1.2639,2625.9,2625.6,1.589]
[1749022660506,1.2639,2625.9,2625.7,6.173]
[1749022660674,0.02,2625.9,2625.8,10.0]
[1749022661981,0.02,2625.9,2625.8,12.80374246]
[1749022666197,0.02,2625.9,2625.8,21.01874246]
[1749022668534,0.02,2625.9,2625.8,18.215]
[1749022671755,0.02,2625.9,2625.8,25.975]
[1749022677239,0.02,2625.9,2625.8,28.77874246]
[1749022682972,0.02,2625.9,2625.8,23.430921]
[1749022683164,0.02,2625.9,2625.8,18.493406]
[1749022683752,0.02,2625.9,2625.8,9.802]
[1749022683957,0.02,2625.9,2625.8,17.876354]
[1749022684886,0.02,2625.9,2625.8,24.047354]
[1749022687191,0.02,2625.9,2625.8,26.85109646]
[1749022688993,0.02,2625.9,2625.8,34.85109646]
[1749022689176,0.02,2625.9,2625.8,25.876354]
[1749022689376,0.02,2625.9,2625.8,19.505625]
[1749022689691,0.02,2625.9,2625.8,15.973]
[1749022689996,0.02,2625.9,2625.8,25.404217]
[1749022690194,1.35,2625.9,2625.8,15.972]
[1749022692793,0.02,2625.9,2625.8,28.77574246]
[1749022693709,0.02,2625.9,2625.8,25.972]
[1749022694489,0.02,2625.9,2625.8,20.899349]
[1749022694711,5.10116528,2625.9,2625.8,9.802]
[1749022694886,5.10116528,2625.9,2625.8,15.973]
[1749022694887,5.06128181,2625.9,2625.8,15.973]
[1749022695087,4.55116528,2625.9,2625.8,18.216]
[1749022695613,3.26766528,2625.9,2625.8,18.216]
[1749022696177,3.26766528,2625.9,2625.8,21.01974246]
[1749022698721,0.02,2625.9,2625.8,21.01974246]
[1749022699326,0.02,2625.9,2625.8,21.01874246]
[1749022701910,0.02,2625.9,2625.8,14.84874246]
[1749022702114,0.02,2625.9,2625.8,21.01874246]
[1749022705901,0.02,2625.9,2625.8,29.01874246]
[1749022706214,0.02,2625.9,2625.8,22.84874246]
[1749022706434,0.02,2625.9,2625.8,10.457]
[1749022706634,1.3502,2625.9,2625.8,15.972]
[1749022706946,1.9002,2625.9,2625.8,9.802]
[1749022707328,1.8351,2625.8,2625.7,1.588]
[1749022707641,1.39565077,2625.8,2625.7,1.588]
[1749022707807,1.39565077,2625.8,2624.8,8.214]
[1749022707808,0.2,2625.2,2623.4,0.55]
[1749022708009,4.49276528,2625.1,2624.8,10.0]
[1749022708414,4.49276528,2625.1,2624.7,2.80374246]
[1749022708612,4.49276528,2625.1,2623.9,1.15736804]
[1749022708613,3.44766528,2625.0,2624.3,2.80374246]
[1749022708919,3.44766528,2625.0,2624.5,8.0]
[1749022709132,3.44766528,2625.0,2624.7,8.0]
[1749022709334,3.44766528,2625.0,2624.6,6.17]
[1749022709533,0.2,2624.8,2624.6,6.17]
[1749022709837,0.2,2624.8,2624.7,10.0]
[1749022710233,0.2,2624.8,2624.7,6.17]
[1749022710538,0.2,2624.8,2624.7,16.17]
[1749022711240,0.2,2624.8,2624.7,14.853109]
[1749022712743,0.2,2624.8,2624.7,8.811076]
[1749022712909,0.2,2624.8,2624.7,6.171]
[1749022713459,0.2,2624.8,2624.7,9.386807]
[1749022715442,0.2,2624.8,2624.7,10.974807]
[1749022716601,0.2,2624.8,2624.7,10.766664]
[1749022716803,0.2,2624.8,2624.7,7.759]
[1749022718118,0.2,2624.8,2624.7,17.759]
[1749022719117,0.02,2624.9,2624.7,17.759]
[1749022719118,0.02,2624.9,2624.8,10.0]
[1749022719938,0.2,2624.8,2624.7,7.759]
[1749022720951,0.2,2624.8,2624.5,1.55098114]
[1749022721170,0.2,2624.8,2624.7,9.805]
[1749022721355,0.2,2624.8,2624.7,19.805]
[1749022721639,0.2,2624.8,2624.7,9.805]
[1749022721817,0.2,2624.8,2624.7,19.805]
[1749022722333,0.2,2624.8,2624.7,25.977]
[1749022726850,0.02,2624.9,2624.8,10.0]
[1749022727815,0.22,2624.9,2624.8,10.0]
[1749022728608,0.02,2624.9,2624.8,10.0]
[1749022729164,0.22,2624.9,2624.8,1.88727843]
[1749022733064,0.22,2624.9,2624.8,11.35929]
[1749022733436,0.22,2624.9,2624.8,9.403628]
[1749022733844,0.22,2624.9,2624.8,6.172]
[1749022734440,0.22,2624.9,2624.8,12.160474]
[1749022734645,0.22,2624.9,2624.8,11.50288]
[1749022734848,1.194,2624.8,2624.7,9.805]
[1749022735159,1.744,2624.8,2624.7,15.977]
[1749022735366,1.9404,2624.8,2624.7,15.977]
[1749022736273,1.3904,2624.8,2624.7,15.977]
[1749022736467,1.194,2624.8,2624.7,15.977]
[1749022738278,0.22,2624.9,2624.7,15.977]
[1749022739602,0.22,2624.9,2624.8,8.866754]
[1749022739814,0.22,2624.9,2624.8,2.356624]
[1749022740870,0.02,2624.9,2624.8,2.356624]
[1749022741095,0.22,2624.9,2624.8,2.356624]
[1749022746175,0.02,2624.9,2624.8,2.356624]
[1749022746390,0.22,2624.9,2624.8,2.356624]
[1749022746920,0.22,2624.9,2624.7,15.977]
[1749022747122,1.1996,2624.8,2624.7,9.805]
[1749022747337,1.1996,2624.8,2624.7,15.977]
[1749022751915,4.44726528,2624.8,2624.7,15.977]
[1749022754097,4.99726528,2624.8,2624.7,9.805]
[1749022754347,5.49139181,2624.8,2624.7,9.805]
[1749022754707,5.49139181,2624.8,2624.7,15.977]
[1749022755007,5.49139181,2624.8,2624.7,9.805]
[1749022755198,5.49139181,2624.8,2624.7,15.977]
[1749022760818,5.49139181,2624.8,2624.7,15.978]
[1749022764324,5.49139181,2624.8,2624.7,40.978]
[1749022765749,3.99766528,2624.8,2624.7,40.978]
[1749022765962,3.44766528,2624.8,2624.7,40.978]